[Event "Late-Titled-Tuesday-Blitz-December-26-2023"]
[Site "Chess.com"]
[Date "2023.12.26"]
[Round "7"]
[White "KejJaj"]
[Black "Inepton_Fermion"]
[Result "1-0"]
[WhiteElo "2164"]
[BlackElo "2409"]
[TimeControl "180+1"]
[EndTime "15:16:26 PST"]
[Termination "KejJaj won by checkmate"]

1. d4 {[%clk 0:03:00.9]} 1... g6 {[%clk 0:02:59.2]} 2. Nc3 {[%clk 0:02:58.8]}
2... Bg7 {[%clk 0:02:57.1]} 3. e4 {[%clk 0:02:59.2]} 3... d6 {[%clk 0:02:57.4]}
4. Bf4 {[%clk 0:02:58.3]} 4... c6 {[%clk 0:02:46.1]} 5. Nf3 {[%clk 0:02:56.2]}
5... Nd7 {[%clk 0:02:32.5]} 6. Qd2 {[%clk 0:02:55]} 6... b5 {[%clk 0:02:28.3]}
7. O-O-O {[%clk 0:02:52.8]} 7... Nb6 {[%clk 0:02:21.7]} 8. h4 {[%clk 0:02:41.9]}
8... h6 {[%clk 0:02:15.9]} 9. Bd3 {[%clk 0:02:30.9]} 9... Bg4 {[%clk 0:02:02.9]}
10. Rhe1 {[%clk 0:02:26.3]} 10... a6 {[%clk 0:01:40]} 11. e5 {[%clk 0:02:21.6]}
11... Bxf3 {[%clk 0:01:30.7]} 12. gxf3 {[%clk 0:02:16.9]} 12... d5 {[%clk
0:01:21.1]} 13. e6 {[%clk 0:02:06.9]} 13... f5 {[%clk 0:01:20.8]} 14. Be5 {[%clk
0:02:02.8]} 14... Nf6 {[%clk 0:01:18]} 15. Rg1 {[%clk 0:02:01]} 15... Nc4 {[%clk
0:00:19.5]} 16. Bxc4 {[%clk 0:02:00]} 16... bxc4 {[%clk 0:00:18.5]} 17. Rxg6
{[%clk 0:02:00.2]} 17... Bf8 {[%clk 0:00:14.1]} 18. Bxf6 {[%clk 0:01:41.5]}
18... exf6 {[%clk 0:00:15]} 19. Re1 {[%clk 0:01:38.6]} 19... Be7 {[%clk
0:00:14.7]} 20. Qf4 {[%clk 0:01:34]} 20... Qa5 {[%clk 0:00:06.1]} 21. Reg1
{[%clk 0:01:17.5]} 21... O-O-O {[%clk 0:00:05.3]} 22. Kb1 {[%clk 0:01:11.3]}
22... Kb7 {[%clk 0:00:02.3]} 23. Rg7 {[%clk 0:01:09.7]} 23... Rhe8 {[%clk
0:00:02.8]} 24. Qxh6 {[%clk 0:00:50.5]} 24... Ka8 {[%clk 0:00:02.8]} 25. Qh7
{[%clk 0:00:49.4]} 25... Rb8 {[%clk 0:00:02.7]} 26. Nd1 {[%clk 0:00:36]} 26...
Ba3 {[%clk 0:00:01.7]} 27. Ra7# {[%clk 0:00:33.3]} 1-0

[Event "Late-Titled-Tuesday-Blitz-December-26-2023"]
[Site "Chess.com"]
[Date "2023.12.26"]
[Round "7"]
[White "Schwindle"]
[Black "VitorBronson"]
[Result "1-0"]
[WhiteElo "2403"]
[BlackElo "2528"]
[TimeControl "180+1"]
[EndTime "15:16:27 PST"]
[Termination "Schwindle won by resignation"]

1. e4 {[%clk 0:03:00.9]} 1... c5 {[%clk 0:02:59.9]} 2. Nf3 {[%clk 0:03:01.3]}
2... d6 {[%clk 0:03:00.4]} 3. d4 {[%clk 0:03:01.5]} 3... cxd4 {[%clk 0:03:01.3]}
4. Nxd4 {[%clk 0:03:02.2]} 4... Nf6 {[%clk 0:03:01.6]} 5. Nc3 {[%clk 0:03:02.7]}
5... a6 {[%clk 0:03:02.2]} 6. Be3 {[%clk 0:03:02.8]} 6... e5 {[%clk 0:03:02.1]}
7. Nb3 {[%clk 0:03:03]} 7... Be6 {[%clk 0:03:02.3]} 8. f3 {[%clk 0:03:03.4]}
8... h5 {[%clk 0:03:02.4]} 9. Qd2 {[%clk 0:03:03.1]} 9... Nbd7 {[%clk
0:03:01.5]} 10. Nd5 {[%clk 0:02:58.6]} 10... Bxd5 {[%clk 0:03:01.6]} 11. exd5
{[%clk 0:02:58.3]} 11... g6 {[%clk 0:03:02.1]} 12. O-O-O {[%clk 0:02:56.4]}
12... Bg7 {[%clk 0:03:02.5]} 13. Kb1 {[%clk 0:02:55.7]} 13... O-O {[%clk
0:03:02.5]} 14. h3 {[%clk 0:02:56.3]} 14... Re8 {[%clk 0:02:55.5]} 15. g4 {[%clk
0:02:55]} 15... e4 {[%clk 0:02:54.4]} 16. g5 {[%clk 0:02:34.7]} 16... Nh7 {[%clk
0:02:54.1]} 17. f4 {[%clk 0:02:34.8]} 17... a5 {[%clk 0:02:51.3]} 18. a4 {[%clk
0:02:27.6]} 18... b6 {[%clk 0:02:49.3]} 19. Nd4 {[%clk 0:02:23.6]} 19... Nc5
{[%clk 0:02:46.5]} 20. Nc6 {[%clk 0:02:19.7]} 20... Qd7 {[%clk 0:02:46.1]} 21.
Bb5 {[%clk 0:02:20]} 21... Qc7 {[%clk 0:02:45.4]} 22. f5 {[%clk 0:02:05.8]}
22... Nf8 {[%clk 0:02:42.9]} 23. f6 {[%clk 0:02:01.8]} 23... Bh8 {[%clk
0:02:43.4]} 24. Ne7+ {[%clk 0:01:39.5]} 24... Rxe7 {[%clk 0:02:42.2]} 25. fxe7
{[%clk 0:01:40.4]} 25... Qxe7 {[%clk 0:02:42.6]} 26. Rhf1 {[%clk 0:01:34.5]}
26... Nfd7 {[%clk 0:02:42.1]} 27. Bd4 {[%clk 0:01:27.4]} 27... Ne5 {[%clk
0:02:42.3]} 28. Qe3 {[%clk 0:01:21.4]} 28... Bg7 {[%clk 0:02:36.7]} 29. Rf2
{[%clk 0:01:17]} 29... Rc8 {[%clk 0:02:29.5]} 30. Rdf1 {[%clk 0:01:15.5]} 30...
Rc7 {[%clk 0:02:19.3]} 31. Bc6 {[%clk 0:01:06]} 31... Nxc6 {[%clk 0:01:54.7]}
32. dxc6 {[%clk 0:01:04.7]} 32... Bxd4 {[%clk 0:01:26.5]} 33. Qxd4 {[%clk
0:01:03.2]} 33... Qe8 {[%clk 0:01:23]} 34. Qxd6 {[%clk 0:01:00.2]} 34... Rxc6
{[%clk 0:01:23.1]} 35. Qd4 {[%clk 0:00:36]} 35... Rc7 {[%clk 0:01:20.1]} 36. Rf6
{[%clk 0:00:33.8]} 36... Nxa4 {[%clk 0:01:08.8]} 37. Rd6 {[%clk 0:00:30]} 37...
Rc8 {[%clk 0:01:05.8]} 38. Rd7 {[%clk 0:00:25.8]} 38... e3 {[%clk 0:01:02.1]}
39. Rfxf7 {[%clk 0:00:16.9]} 39... Qxf7 {[%clk 0:00:55.9]} 40. Rxf7 {[%clk
0:00:16.9]} 40... Kxf7 {[%clk 0:00:56.8]} 41. Qd7+ {[%clk 0:00:16.8]} 41... Kf8
{[%clk 0:00:55.4]} 42. Qxc8+ {[%clk 0:00:17.1]} 1-0

[Event "Late-Titled-Tuesday-Blitz-December-26-2023"]
[Site "Chess.com"]
[Date "2023.12.26"]
[Round "7"]
[White "AkatsukiLogHorizon"]
[Black "Tunahan_Makaraci"]
[Result "0-1"]
[WhiteElo "2235"]
[BlackElo "2506"]
[TimeControl "180+1"]
[EndTime "15:16:28 PST"]
[Termination "Tunahan_Makaraci won by resignation"]

1. e4 {[%clk 0:03:00.9]} 1... c5 {[%clk 0:02:59.3]} 2. Nf3 {[%clk 0:02:59.4]}
2... Nc6 {[%clk 0:02:58.6]} 3. d4 {[%clk 0:02:59.5]} 3... cxd4 {[%clk
0:02:59.2]} 4. Nxd4 {[%clk 0:02:59.6]} 4... g6 {[%clk 0:02:59.9]} 5. Nc3 {[%clk
0:02:58]} 5... Bg7 {[%clk 0:02:59.3]} 6. Be3 {[%clk 0:02:57.9]} 6... Nf6 {[%clk
0:02:59.6]} 7. Bc4 {[%clk 0:02:52.7]} 7... O-O {[%clk 0:02:59.3]} 8. Bb3 {[%clk
0:02:51.9]} 8... d6 {[%clk 0:02:59]} 9. f3 {[%clk 0:02:52.4]} 9... Bd7 {[%clk
0:02:58.7]} 10. Qd2 {[%clk 0:02:53.1]} 10... Rc8 {[%clk 0:02:57.9]} 11. O-O-O
{[%clk 0:02:53]} 11... Nxd4 {[%clk 0:02:58.2]} 12. Bxd4 {[%clk 0:02:52.7]} 12...
b5 {[%clk 0:02:58.6]} 13. h4 {[%clk 0:02:51.5]} 13... a5 {[%clk 0:02:54.5]} 14.
a4 {[%clk 0:02:20.8]} 14... bxa4 {[%clk 0:02:47.5]} 15. Bxa4 {[%clk 0:02:15]}
15... Bxa4 {[%clk 0:02:48.4]} 16. Nxa4 {[%clk 0:02:14.9]} 16... Rc4 {[%clk
0:02:48.6]} 17. b3 {[%clk 0:02:11.6]} 17... Nxe4 {[%clk 0:02:48]} 18. fxe4
{[%clk 0:02:08]} 18... Rxd4 {[%clk 0:02:45.9]} 19. Qe3 {[%clk 0:02:03.3]} 19...
Rb4 {[%clk 0:02:31.8]} 20. h5 {[%clk 0:01:59.1]} 20... Qc7 {[%clk 0:02:24.3]}
21. hxg6 {[%clk 0:01:56.8]} 21... hxg6 {[%clk 0:02:22.3]} 22. Kd2 {[%clk
0:01:25]} 22... Rc8 {[%clk 0:02:16.1]} 23. Rc1 {[%clk 0:01:25]} 23... Qc6 {[%clk
0:01:52.1]} 24. c4 {[%clk 0:01:20.5]} 24... Rcb8 {[%clk 0:01:48.9]} 25. Rb1
{[%clk 0:01:17.2]} 25... Qd7 {[%clk 0:01:16.5]} 26. Kc2 {[%clk 0:00:49.3]} 26...
Qe6 {[%clk 0:01:12]} 27. Nc3 {[%clk 0:00:44.2]} 27... a4 {[%clk 0:00:46.4]} 28.
Nxa4 {[%clk 0:00:26.8]} 28... Rxb3 {[%clk 0:00:31.6]} 29. Rbc1 {[%clk
0:00:19.3]} 29... Qxc4+ {[%clk 0:00:28.6]} 0-1

[Event "Late-Titled-Tuesday-Blitz-December-26-2023"]
[Site "Chess.com"]
[Date "2023.12.26"]
[Round "7"]
[White "IgorBjelobrk"]
[Black "nickmatta"]
[Result "0-1"]
[WhiteElo "2661"]
[BlackElo "2544"]
[TimeControl "180+1"]
[EndTime "15:16:29 PST"]
[Termination "nickmatta won on time"]

1. d4 {[%clk 0:03:00.9]} 1... Nf6 {[%clk 0:02:57.6]} 2. c4 {[%clk 0:03:00.5]}
2... g6 {[%clk 0:02:57.9]} 3. Nc3 {[%clk 0:03:00.1]} 3... d5 {[%clk 0:02:58.4]}
4. Nf3 {[%clk 0:02:58.7]} 4... Bg7 {[%clk 0:02:58.6]} 5. h4 {[%clk 0:02:58.2]}
5... O-O {[%clk 0:02:51.6]} 6. cxd5 {[%clk 0:02:55.1]} 6... Nxd5 {[%clk
0:02:50.8]} 7. h5 {[%clk 0:02:54.9]} 7... c5 {[%clk 0:02:50.7]} 8. hxg6 {[%clk
0:02:49.5]} 8... hxg6 {[%clk 0:02:45.2]} 9. Bh6 {[%clk 0:02:49.3]} 9... cxd4
{[%clk 0:02:36.7]} 10. Bxg7 {[%clk 0:02:45.5]} 10... Kxg7 {[%clk 0:02:36.9]} 11.
Qxd4+ {[%clk 0:02:08.9]} 11... Nf6 {[%clk 0:02:37.4]} 12. Qe3 {[%clk 0:01:49.9]}
12... Ng4 {[%clk 0:02:27.5]} 13. Qf4 {[%clk 0:01:33]} 13... Qb6 {[%clk
0:02:25.8]} 14. O-O-O {[%clk 0:01:28.2]} 14... Qxf2 {[%clk 0:02:19.4]} 15. Nd5
{[%clk 0:01:08.9]} 15... Be6 {[%clk 0:02:11.4]} 16. Nc7 {[%clk 0:00:52.9]} 16...
Rc8 {[%clk 0:02:00.6]} 17. Kb1 {[%clk 0:00:49]} 17... Bf5+ {[%clk 0:01:52]} 18.
Ka1 {[%clk 0:00:48.3]} 18... e5 {[%clk 0:01:48.8]} 19. Rh7+ {[%clk 0:00:20.4]}
19... Kxh7 {[%clk 0:01:43.4]} 20. Ng5+ {[%clk 0:00:20.2]} 20... Kg7 {[%clk
0:01:39.3]} 21. Qc4 {[%clk 0:00:11.3]} 21... Bd7 {[%clk 0:00:43.8]} 22. a3
{[%clk 0:00:03.4]} 22... Ne3 {[%clk 0:00:37.8]} 23. Qc5 {[%clk 0:00:01.6]} 23...
Nxd1 {[%clk 0:00:33.1]} 24. Qxe5+ {[%clk 0:00:01.7]} 24... Qf6 {[%clk
0:00:32.9]} 0-1

[Event "Late-Titled-Tuesday-Blitz-December-26-2023"]
[Site "Chess.com"]
[Date "2023.12.26"]
[Round "7"]
[White "Fore_Man"]
[Black "Grammnik"]
[Result "0-1"]
[WhiteElo "2379"]
[BlackElo "2226"]
[TimeControl "180+1"]
[EndTime "15:16:31 PST"]
[Termination "Grammnik won by resignation"]

1. Nf3 {[%clk 0:03:00.9]} 1... Nf6 {[%clk 0:02:59.2]} 2. d4 {[%clk 0:03:01.4]}
2... d5 {[%clk 0:02:59]} 3. g3 {[%clk 0:03:01.1]} 3... c6 {[%clk 0:02:58.5]} 4.
Bg2 {[%clk 0:03:02]} 4... Bf5 {[%clk 0:02:58.3]} 5. O-O {[%clk 0:03:02.9]} 5...
e6 {[%clk 0:02:58.6]} 6. b3 {[%clk 0:03:03.4]} 6... Nbd7 {[%clk 0:02:58.5]} 7.
c4 {[%clk 0:03:04]} 7... Be7 {[%clk 0:02:57.4]} 8. Bb2 {[%clk 0:03:04.3]} 8...
O-O {[%clk 0:02:57.4]} 9. Nbd2 {[%clk 0:03:04.4]} 9... a5 {[%clk 0:02:57.4]} 10.
Nh4 {[%clk 0:03:04.5]} 10... Bg6 {[%clk 0:02:57]} 11. Nxg6 {[%clk 0:03:04.4]}
11... hxg6 {[%clk 0:02:57.9]} 12. e4 {[%clk 0:03:04.8]} 12... Nxe4 {[%clk
0:02:57.4]} 13. Nxe4 {[%clk 0:03:05.7]} 13... dxe4 {[%clk 0:02:57.8]} 14. Bxe4
{[%clk 0:03:06.5]} 14... Nf6 {[%clk 0:02:58.2]} 15. Bg2 {[%clk 0:03:07.3]} 15...
a4 {[%clk 0:02:57]} 16. Qd2 {[%clk 0:03:07.4]} 16... Qd7 {[%clk 0:02:53.2]} 17.
Rfd1 {[%clk 0:03:01.2]} 17... Rfd8 {[%clk 0:02:52.3]} 18. Qe2 {[%clk 0:02:58]}
18... Qc7 {[%clk 0:02:46]} 19. Rac1 {[%clk 0:02:48.8]} 19... axb3 {[%clk
0:02:41]} 20. axb3 {[%clk 0:02:49.7]} 20... Ra2 {[%clk 0:02:35.3]} 21. Ra1
{[%clk 0:02:44.1]} 21... Rda8 {[%clk 0:02:29.9]} 22. Rxa2 {[%clk 0:02:39.8]}
22... Rxa2 {[%clk 0:02:29]} 23. Ra1 {[%clk 0:02:40.7]} 23... Qa5 {[%clk
0:02:26.6]} 24. Qd1 {[%clk 0:02:27.1]} 24... Bb4 {[%clk 0:02:22.6]} 25. Qb1
{[%clk 0:02:23.9]} 25... Rxa1 {[%clk 0:02:20.9]} 26. Qxa1 {[%clk 0:02:24.8]}
26... Qxa1+ {[%clk 0:02:18.8]} 27. Bxa1 {[%clk 0:02:25.7]} 27... Kf8 {[%clk
0:02:14.2]} 28. Kf1 {[%clk 0:02:25.2]} 28... Ke7 {[%clk 0:02:13.8]} 29. Ke2
{[%clk 0:02:25.3]} 29... Kd7 {[%clk 0:02:13.5]} 30. h3 {[%clk 0:02:23.8]} 30...
b5 {[%clk 0:02:11.4]} 31. Kd3 {[%clk 0:02:21.1]} 31... bxc4+ {[%clk 0:02:10.8]}
32. bxc4 {[%clk 0:02:22]} 32... Bd6 {[%clk 0:02:10.4]} 33. Bc3 {[%clk 0:02:14]}
33... Be7 {[%clk 0:02:10.2]} 34. Ba5 {[%clk 0:02:06.5]} 34... Bd6 {[%clk
0:02:09.5]} 35. Bb6 {[%clk 0:01:55.6]} 35... Be7 {[%clk 0:02:09.1]} 36. g4
{[%clk 0:01:50.9]} 36... g5 {[%clk 0:02:06.6]} 37. Ba5 {[%clk 0:01:48.3]} 37...
Ne8 {[%clk 0:01:59.7]} 38. Bd2 {[%clk 0:01:48.6]} 38... Nc7 {[%clk 0:01:56.2]}
39. Ke4 {[%clk 0:01:36.7]} 39... Ne8 {[%clk 0:01:55]} 40. Bf1 {[%clk 0:01:32.1]}
40... Nd6+ {[%clk 0:01:53]} 41. Kd3 {[%clk 0:01:32.1]} 41... Bf6 {[%clk
0:01:51.1]} 42. Be2 {[%clk 0:01:28.8]} 42... Nc8 {[%clk 0:01:48.6]} 43. Bb4
{[%clk 0:01:27]} 43... Ne7 {[%clk 0:01:47.5]} 44. Bd1 {[%clk 0:01:25.9]} 44...
Ng6 {[%clk 0:01:47]} 45. Ke4 {[%clk 0:01:18.2]} 45... Ne7 {[%clk 0:01:39.8]} 46.
Ba4 {[%clk 0:01:17]} 46... Kc7 {[%clk 0:01:34.2]} 47. Bc5 {[%clk 0:01:13.2]}
47... Kd7 {[%clk 0:01:33.1]} 48. Kd3 {[%clk 0:00:47.9]} 48... Ng6 {[%clk
0:01:24.3]} 49. d5 {[%clk 0:00:43.9]} 49... exd5 {[%clk 0:01:22.4]} 50. cxd5
{[%clk 0:00:38.7]} 50... Nf4+ {[%clk 0:01:22]} 51. Ke4 {[%clk 0:00:39.3]} 51...
Nxd5 {[%clk 0:01:21.1]} 52. Bb3 {[%clk 0:00:34.6]} 52... Ke6 {[%clk 0:01:17.7]}
53. Ba4 {[%clk 0:00:34.6]} 53... Nc3+ {[%clk 0:01:12.3]} 54. Kd3 {[%clk
0:00:34.9]} 54... Nxa4 {[%clk 0:01:12.3]} 55. Be3 {[%clk 0:00:35.8]} 55... Kd5
{[%clk 0:01:10.1]} 0-1

[Event "Late-Titled-Tuesday-Blitz-December-26-2023"]
[Site "Chess.com"]
[Date "2023.12.26"]
[Round "7"]
[White "Korchmar_Vasiliy"]
[Black "Shankland"]
[Result "0-1"]
[WhiteElo "2798"]
[BlackElo "2956"]
[TimeControl "180+1"]
[EndTime "15:16:38 PST"]
[Termination "Shankland won on time"]

1. e4 {[%clk 0:03:00.9]} 1... c5 {[%clk 0:02:58.6]} 2. d4 {[%clk 0:03:00.8]}
2... cxd4 {[%clk 0:02:58.5]} 3. Qxd4 {[%clk 0:03:01.7]} 3... Nc6 {[%clk
0:02:57.6]} 4. Qd3 {[%clk 0:03:02.1]} 4... g6 {[%clk 0:02:57.6]} 5. Nc3 {[%clk
0:03:02.5]} 5... Bg7 {[%clk 0:02:58.2]} 6. Nf3 {[%clk 0:03:03.1]} 6... d6 {[%clk
0:02:57.9]} 7. Be2 {[%clk 0:03:03.8]} 7... Nf6 {[%clk 0:02:57.5]} 8. O-O {[%clk
0:03:04.5]} 8... Bd7 {[%clk 0:02:57.8]} 9. Nd5 {[%clk 0:03:04]} 9... Rc8 {[%clk
0:02:58]} 10. c3 {[%clk 0:03:04]} 10... h6 {[%clk 0:02:51.3]} 11. Be3 {[%clk
0:02:56.2]} 11... Ng4 {[%clk 0:02:49.7]} 12. Bc1 {[%clk 0:02:50.3]} 12... O-O
{[%clk 0:02:42.9]} 13. h3 {[%clk 0:02:50.6]} 13... Nge5 {[%clk 0:02:42.3]} 14.
Nxe5 {[%clk 0:02:50.9]} 14... Nxe5 {[%clk 0:02:43.2]} 15. Qg3 {[%clk 0:02:51.6]}
15... e6 {[%clk 0:02:40.4]} 16. Nb4 {[%clk 0:02:50.7]} 16... a5 {[%clk
0:02:39.5]} 17. Nc2 {[%clk 0:02:50.6]} 17... Bc6 {[%clk 0:02:35.5]} 18. f3
{[%clk 0:02:44.4]} 18... b5 {[%clk 0:02:33]} 19. Be3 {[%clk 0:02:37.1]} 19... b4
{[%clk 0:02:31.1]} 20. cxb4 {[%clk 0:02:25.5]} 20... Bxe4 {[%clk 0:02:30.3]} 21.
Nd4 {[%clk 0:02:11.4]} 21... Bd5 {[%clk 0:02:30.2]} 22. bxa5 {[%clk 0:01:44.1]}
22... Qxa5 {[%clk 0:02:28.5]} 23. Kh1 {[%clk 0:01:32.1]} 23... Nc4 {[%clk
0:02:26.3]} 24. Bxc4 {[%clk 0:01:30.8]} 24... Rxc4 {[%clk 0:02:27.2]} 25. Rfd1
{[%clk 0:01:24.9]} 25... Qa6 {[%clk 0:02:25.3]} 26. Qf2 {[%clk 0:01:06.5]} 26...
Rfc8 {[%clk 0:02:24.6]} 27. b3 {[%clk 0:01:02.7]} 27... Rc3 {[%clk 0:02:23.8]}
28. Qd2 {[%clk 0:00:35.8]} 28... Kh7 {[%clk 0:02:17.8]} 29. Rac1 {[%clk
0:00:33.8]} 29... Rxc1 {[%clk 0:02:16.6]} 30. Rxc1 {[%clk 0:00:34.4]} 30...
Rxc1+ {[%clk 0:02:16.6]} 31. Qxc1 {[%clk 0:00:35.3]} 31... Qxa2 {[%clk 0:02:16]}
32. b4 {[%clk 0:00:32.9]} 32... Qa4 {[%clk 0:02:12.6]} 33. Qb1 {[%clk
0:00:27.9]} 33... e5 {[%clk 0:02:09]} 34. Ne2 {[%clk 0:00:22.7]} 34... e4 {[%clk
0:02:07.2]} 35. fxe4 {[%clk 0:00:20]} 35... Bc4 {[%clk 0:02:02.4]} 36. Nd4
{[%clk 0:00:08]} 36... Qa3 {[%clk 0:02:02.6]} 37. Bg1 {[%clk 0:00:08.1]} 37...
Bd3 {[%clk 0:02:01.7]} 38. Qb3 {[%clk 0:00:05.6]} 38... Qxb3 {[%clk 0:02:00.5]}
39. Nxb3 {[%clk 0:00:06.5]} 39... Bxe4 {[%clk 0:01:57.2]} 40. b5 {[%clk
0:00:06.5]} 40... Bc3 {[%clk 0:01:57.4]} 41. b6 {[%clk 0:00:04.2]} 41... Kg7
{[%clk 0:01:57.2]} 42. Bd4+ {[%clk 0:00:03.8]} 42... Bxd4 {[%clk 0:01:56.6]} 43.
Nxd4 {[%clk 0:00:04.7]} 43... Kf6 {[%clk 0:01:56.7]} 44. Nb3 {[%clk 0:00:04.1]}
44... Ke7 {[%clk 0:01:56.7]} 45. Na5 {[%clk 0:00:02.5]} 45... Kd7 {[%clk
0:01:56.7]} 46. Kg1 {[%clk 0:00:02.2]} 46... Bd5 {[%clk 0:01:56.4]} 47. Kf2
{[%clk 0:00:02.1]} 47... h5 {[%clk 0:01:54.8]} 48. h4 {[%clk 0:00:02.3]} 48...
f6 {[%clk 0:01:54.8]} 49. g3 {[%clk 0:00:02.6]} 49... g5 {[%clk 0:01:54.5]} 50.
Ke3 {[%clk 0:00:03]} 50... Bh1 {[%clk 0:01:52.9]} 51. Kf2 {[%clk 0:00:03]} 51...
d5 {[%clk 0:01:51.6]} 52. Ke3 {[%clk 0:00:03.2]} 52... Be4 {[%clk 0:01:48]} 53.
Kd4 {[%clk 0:00:03.3]} 53... gxh4 {[%clk 0:01:46.4]} 54. gxh4 {[%clk 0:00:03.2]}
54... f5 {[%clk 0:01:46.7]} 55. Ke5 {[%clk 0:00:03.5]} 55... Kc8 {[%clk
0:01:42]} 0-1

[Event "Late-Titled-Tuesday-Blitz-December-26-2023"]
[Site "Chess.com"]
[Date "2023.12.26"]
[Round "7"]
[White "Szparu"]
[Black "SlipperySpeedster"]
[Result "1-0"]
[WhiteElo "2906"]
[BlackElo "2649"]
[TimeControl "180+1"]
[EndTime "15:16:41 PST"]
[Termination "Szparu won by checkmate"]

1. e4 {[%clk 0:03:00.9]} 1... e5 {[%clk 0:03:00]} 2. Nf3 {[%clk 0:03:01]} 2...
Nf6 {[%clk 0:03:00.3]} 3. Nc3 {[%clk 0:03:00.2]} 3... Nc6 {[%clk 0:03:00.3]} 4.
Bb5 {[%clk 0:03:00]} 4... Bc5 {[%clk 0:02:56.3]} 5. O-O {[%clk 0:02:56.6]} 5...
O-O {[%clk 0:02:55.2]} 6. Nxe5 {[%clk 0:02:56.4]} 6... Nxe5 {[%clk 0:02:52.1]}
7. d4 {[%clk 0:02:55.9]} 7... Bd6 {[%clk 0:02:51]} 8. f4 {[%clk 0:02:56.1]} 8...
Ng6 {[%clk 0:02:46.1]} 9. e5 {[%clk 0:02:49.9]} 9... c6 {[%clk 0:02:40.2]} 10.
Bd3 {[%clk 0:02:42]} 10... Bc7 {[%clk 0:02:35.2]} 11. exf6 {[%clk 0:02:33.8]}
11... Qxf6 {[%clk 0:02:36.1]} 12. Ne2 {[%clk 0:02:25.6]} 12... d5 {[%clk
0:02:32.8]} 13. f5 {[%clk 0:02:23]} 13... Ne7 {[%clk 0:02:32.2]} 14. Bf4 {[%clk
0:02:14.4]} 14... Bb6 {[%clk 0:02:13.8]} 15. g4 {[%clk 0:01:55.7]} 15... Bxd4+
{[%clk 0:02:04.2]} 16. Kh1 {[%clk 0:01:55.8]} 16... Be5 {[%clk 0:02:02.1]} 17.
Qd2 {[%clk 0:01:45.8]} 17... c5 {[%clk 0:01:39.8]} 18. Ng3 {[%clk 0:01:37]}
18... c4 {[%clk 0:01:06.9]} 19. Bxe5 {[%clk 0:01:21.1]} 19... Qxe5 {[%clk
0:01:07.8]} 20. Rae1 {[%clk 0:01:21.4]} 20... Qd6 {[%clk 0:01:01.7]} 21. Bxc4
{[%clk 0:01:18.3]} 21... Bd7 {[%clk 0:00:51.1]} 22. Bb3 {[%clk 0:01:12.1]} 22...
Bc6 {[%clk 0:00:47.7]} 23. Qd4 {[%clk 0:01:12.1]} 23... Rfe8 {[%clk 0:00:38]}
24. Nh5 {[%clk 0:01:09.9]} 24... Qh6 {[%clk 0:00:26.4]} 25. f6 {[%clk
0:00:45.4]} 25... Ng6 {[%clk 0:00:09.4]} 26. fxg7 {[%clk 0:00:42.7]} 26... Rxe1
{[%clk 0:00:03.1]} 27. Rxe1 {[%clk 0:00:42.5]} 27... Qg5 {[%clk 0:00:03.5]} 28.
Nf6+ {[%clk 0:00:30.2]} 28... Kxg7 {[%clk 0:00:03.6]} 29. Ne8+ {[%clk
0:00:30.8]} 29... Kf8 {[%clk 0:00:01.4]} 30. Qg7# {[%clk 0:00:31.7]} 1-0

[Event "Late-Titled-Tuesday-Blitz-December-26-2023"]
[Site "Chess.com"]
[Date "2023.12.26"]
[Round "7"]
[White "katharinareinecke"]
[Black "nassimzrikem"]
[Result "0-1"]
[WhiteElo "2012"]
[BlackElo "2253"]
[TimeControl "180+1"]
[EndTime "15:16:44 PST"]
[Termination "nassimzrikem won on time"]

1. e4 {[%clk 0:03:00.9]} 1... e5 {[%clk 0:02:46]} 2. Nc3 {[%clk 0:02:59.4]} 2...
Nf6 {[%clk 0:02:45.7]} 3. f4 {[%clk 0:02:58.6]} 3... exf4 {[%clk 0:02:37.5]} 4.
e5 {[%clk 0:02:54.9]} 4... Qe7 {[%clk 0:02:34.1]} 5. Qe2 {[%clk 0:02:47.1]} 5...
Ng8 {[%clk 0:02:26.5]} 6. d4 {[%clk 0:02:46.1]} 6... Nc6 {[%clk 0:02:18.2]} 7.
Nf3 {[%clk 0:02:44.7]} 7... d6 {[%clk 0:02:08.8]} 8. Bxf4 {[%clk 0:02:31.9]}
8... dxe5 {[%clk 0:02:07.8]} 9. dxe5 {[%clk 0:02:10.4]} 9... Be6 {[%clk
0:02:07.8]} 10. O-O-O {[%clk 0:02:05.8]} 10... Rd8 {[%clk 0:01:54.4]} 11. g3
{[%clk 0:01:41.5]} 11... Rxd1+ {[%clk 0:01:53.7]} 12. Qxd1 {[%clk 0:01:41.6]}
12... Qd8 {[%clk 0:01:53.3]} 13. Bb5 {[%clk 0:01:37.9]} 13... Bb4 {[%clk
0:01:50]} 14. Qxd8+ {[%clk 0:01:32.4]} 14... Kxd8 {[%clk 0:01:49.5]} 15. Bxc6
{[%clk 0:01:32.4]} 15... bxc6 {[%clk 0:01:47]} 16. Rd1+ {[%clk 0:01:31.4]} 16...
Kc8 {[%clk 0:01:45.8]} 17. Nd4 {[%clk 0:01:14.8]} 17... Ne7 {[%clk 0:01:40.6]}
18. Nxe6 {[%clk 0:01:13.6]} 18... fxe6 {[%clk 0:01:41.5]} 19. Ne4 {[%clk
0:01:09.8]} 19... h6 {[%clk 0:01:39.2]} 20. c3 {[%clk 0:01:07.7]} 20... Ba5
{[%clk 0:01:28.4]} 21. Nc5 {[%clk 0:01:06.6]} 21... g5 {[%clk 0:01:26.4]} 22.
Bd2 {[%clk 0:00:55.6]} 22... Ng6 {[%clk 0:01:26.5]} 23. Re1 {[%clk 0:00:51.3]}
23... Re8 {[%clk 0:01:26.3]} 24. b4 {[%clk 0:00:39.4]} 24... Bb6 {[%clk
0:01:26.3]} 25. a4 {[%clk 0:00:39]} 25... Bxc5 {[%clk 0:01:26.4]} 26. bxc5
{[%clk 0:00:39.2]} 26... Rf8 {[%clk 0:01:23.9]} 27. Re2 {[%clk 0:00:36.4]} 27...
Rf3 {[%clk 0:01:22.8]} 28. Kc2 {[%clk 0:00:34.3]} 28... Ne7 {[%clk 0:01:23.1]}
29. c4 {[%clk 0:00:32.7]} 29... Nf5 {[%clk 0:01:23]} 30. Bc3 {[%clk 0:00:28.6]}
30... Rf1 {[%clk 0:01:19.6]} 31. Rd2 {[%clk 0:00:18.2]} 31... g4 {[%clk
0:01:18]} 32. Kb3 {[%clk 0:00:15.8]} 32... h5 {[%clk 0:01:17.3]} 33. Kb4 {[%clk
0:00:15.6]} 33... Ne3 {[%clk 0:01:07.2]} 34. Rd4 {[%clk 0:00:11.2]} 34... Nc2+
{[%clk 0:01:01.4]} 35. Ka5 {[%clk 0:00:11.1]} 35... Nxd4 {[%clk 0:01:00.7]} 36.
Bxd4 {[%clk 0:00:11.5]} 36... Rh1 {[%clk 0:01:00.5]} 37. Ka6 {[%clk 0:00:10.8]}
37... Rxh2 {[%clk 0:01:00.6]} 38. a5 {[%clk 0:00:09.8]} 38... Rg2 {[%clk
0:00:56.5]} 39. Kxa7 {[%clk 0:00:08.7]} 39... Rxg3 {[%clk 0:00:56.8]} 40. a6
{[%clk 0:00:03.4]} 40... Ra3 {[%clk 0:00:56.5]} 0-1